[Event "EYCC Open-U12 2019"]
[Site "Bratislava"]
[Date "2019.08.08"]
[Round "7.12"]
[White "Bakiev, Diyor"]
[Black "Pidluznij, Gleb"]
[Result "0-1"]
[ECO "B22"]
[WhiteElo "2121"]
[BlackElo "1947"]
[Annotator "NA"]
[PlyCount "140"]
[EventDate "2019.08.02"]
[EventType "swiss"]
[EventCountry "SVK"]
[SourceTitle "playchess.com"]
[Source "ChessBase"]
[SourceQuality "1"]
[TimeControl "40/5400+30:1800+30"]

1. e4 {[%emt 0:00:00]} c5 {[%emt 0:00:00]} 2. c3 {[%emt 0:00:00]} Nf6 {[%emt 0:00:06]} 3. e5 {[%emt 0:00:01]} Nd5 {[%emt 0:00:24]} 4. d4 {[%emt 0:00:17]} cxd4 {[%emt 0:00:31]} 5. Nf3 {[%emt 0:00:22]} Nc6 {[%emt 0:00:19]} 6. cxd4 {[%emt 0:00:19]} d6 {[%emt 0:00:35]} 7. Bc4 {[%emt 0:00:43]} dxe5 {[%emt 0:00:36]} 8. dxe5 {[%emt 0:01:24]} Ndb4 {[%emt 0:01:10]} 9. Qxd8+ {[%emt 0:05:44]} Nxd8 {[%emt 0:00:30]} 10. Na3 {[%emt 0:04:11]} a6 {[%emt 0:03:04]} 11. Bd2 {[%emt 0:06:19]} e6 {[%emt 0:00:32]} 12. O-O {[%emt 0:02:42]} Be7 {[%emt 0:01:34]} 13. Bxb4 {[%emt 0:07:09]} Bxb4 {[%emt 0:00:20]} 14. Nc2 {[%emt 0:00:05]} Be7 {[%emt 0:01:10]} 15. a4 {[%emt 0:01:44]} Nc6 {[%emt 0:05:24]} 16. Rfd1 {[%emt 0:02:14]} O-O {[%emt 0:03:40]} 17. Bb3 {[%emt 0:17:52]} Rd8 {[%emt 0:11:21]} 18. Ne3 {[%emt 0:02:39]} Na5 {[%emt 0:13:17]} 19. Rxd8+ {[%emt 0:08:16]} Bxd8 {[%emt 0:00:12]} 20. Bc2 {[%emt 0:05:03]} Be7 {[%emt 0:11:01]} 21. Rd1 {[%emt 0:04:01]} b5 {[%emt 0:21:36]} 22. Be4 {[%emt 0:00:42]} Ra7 {[%emt 0:00:56]} 23. b4 {[%emt 0:05:51]} Nb3 {[%emt 0:13:04]} 24. a5 {[%emt 0:14:42]} Rd7 25. Rxd7 {[%emt 0:03:09]} Bxd7 {[%emt 0:05:23]} 26. Nc2 {[%emt 0:00:14]} Bc8 {[%emt 0:00:44]} 27. Kf1 {[%emt 0:02:23]} Nc1 {[%emt 0:00:55]} 28. Nfd4 {[%emt 0:02:27]} Na2 {[%emt 0:00:11]} 29. Nc6 {[%emt 0:00:04]} Bf8 {[%emt 0:00:05]} 30. Na7 {[%emt 0:01:46]} Bd7 {[%emt 0:01:09]} 31. Bc6 {[%emt 0:00:44]} Bxc6 {[%emt 0:00:58]} 32. Nxc6 {[%emt 0:00:01]} f6 {[%emt 0:01:23]} 33. exf6 {[%emt 0:00:57]} gxf6 {[%emt 0:00:01]} 34. f4 {[%emt 0:01:18]} Kf7 {[%emt 0:00:57]} 35. Kf2 {[%emt 0:00:44]} Ke8 {[%emt 0:00:58]} 36. Kf3 {[%emt 0:01:03]} Bd6 {[%emt 0:00:34]} 37. f5 {[%emt 0:00:47]} Kd7 {[%emt 0:01:41]} 38. N6d4 {[%emt 0:00:25]} exf5 {[%emt 0:01:16]} 39. Nxf5 {[%emt 0:00:28]} Bxb4 {[%emt 0:00:25]} 40. Nxb4 {[%emt 0:00:00]} Nxb4 {[%emt 0:00:00]} 41. Nd4 {[%emt 0:02:53]} Nc6 {[%emt 0:02:29]} 42. Nb3 {[%emt 0:00:28]} Ke6 {[%emt 0:04:33]} 43. Nc5+ {[%emt 0:07:07]} Ke5 {[%emt 0:07:55]} 44. Nxa6 {[%emt 0:02:16]} Nxa5 {[%emt 0:00:20]} 45. h4 {[%emt 0:02:28]} Nc6 {[%emt 0:02:22]} 46. Nc5 {[%emt 0:04:50]} f5 {[%emt 0:03:31]} 47. Ke3 {[%emt 0:04:47]} f4+ {[%emt 0:00:21]} 48. Kd3 {[%emt 0:01:56]} Kd5 {[%emt 0:00:08]} 49. Nb3 {[%emt 0:01:18]} Ne5+ {[%emt 0:00:11]} 50. Ke2 {[%emt 0:01:33]} b4 {[%emt 0:01:30]} 51. h5 {[%emt 0:01:21]} Kc4 {[%emt 0:01:42]} 52. Nd2+ {[%emt 0:00:24]} Kc3 {[%emt 0:02:14]} 53. Kd1 {[%emt 0:02:50]} Kd3 {[%emt 0:00:51]} 54. Nb3 {[%emt 0:01:41]} Kc3 {[%emt 0:02:33]} 55. Nd2 {[%emt 0:00:05]} Kd3 {[%emt 0:01:57]} 56. Nb3 {[%emt 0:00:04]} Nd7 {[%emt 0:00:20]} 57. Nc1+ {[%emt 0:01:38]} Ke3 {[%emt 0:00:13]} 58. Na2 b3 {[%emt 0:00:21]} 59. Nb4 {[%emt 0:00:54]} Nf6 {[%emt 0:00:31]} 60. h6 {[%emt 0:00:19]} Ng4 {[%emt 0:00:43]} 61. Nc6 {[%emt 0:01:54]} Nxh6 {[%emt 0:01:00]} 62. Na5 {[%emt 0:00:04]} b2 {[%emt 0:01:37]} 63. Nc4+ {[%emt 0:00:03]} Kf2 {[%emt 0:00:10]} 64. Nxb2 {[%emt 0:00:05]} Kxg2 {[%emt 0:00:38]} 65. Ke1 {[%emt 0:00:24]} Ng4 {[%emt 0:00:49]} 66. Nd3 {[%emt 0:01:01]} Kg3 {[%emt 0:00:13]} 67. Kf1 {[%emt 0:00:47]} f3 {[%emt 0:00:08]} 68. Kg1 {[%emt 0:01:27]} f2+ {[%emt 0:00:09]} 69. Kf1 {[%emt 0:00:08]} Nh2+ {[%emt 0:00:11]} 70. Ke2 {[%emt 0:00:07]} f1=Q+ {[%emt 0:00:03]} 0-1

[Event "EYCC Open-U12 2019"]
[Site "Bratislava"]
[Date "2019.08.08"]
[Round "7.13"]
[White "Navumenka, Mikhei"]
[Black "Tarhan, Adar"]
[Result "1-0"]
[ECO "E06"]
[WhiteElo "2196"]
[BlackElo "1972"]
[Annotator "NA"]
[PlyCount "61"]
[EventDate "2019.08.02"]
[EventType "swiss"]
[EventCountry "SVK"]
[SourceTitle "playchess.com"]
[Source "ChessBase"]
[SourceQuality "1"]
[TimeControl "40/5400+30:1800+30"]

1. d4 {[%emt 0:00:00]} d5 {[%emt 0:00:00]} 2. c4 {[%emt 0:00:00]} e6 {[%emt 0:00:00]} 3. Nf3 {[%emt 0:00:00]} Nf6 {[%emt 0:00:05]} 4. g3 {[%emt 0:00:02]} Be7 {[%emt 0:00:04]} 5. Bg2 {[%emt 0:00:05]} O-O {[%emt 0:00:08]} 6. O-O {[%emt 0:00:07]} dxc4 {[%emt 0:00:27]} 7. Qc2 {[%emt 0:00:06]} a6 {[%emt 0:00:22]} 8. a4 {[%emt 0:00:02]} Bd7 {[%emt 0:01:16]} 9. Qxc4 {[%emt 0:00:09]} Bc6 {[%emt 0:01:30]} 10. Nc3 {[%emt 0:04:22]} b5 {[%emt 0:04:13]} 11. Qb3 {[%emt 0:01:39]} b4 {[%emt 0:00:41]} 12. Nb1 {[%emt 0:01:03]} Nbd7 {[%emt 0:05:13]} 13. Nbd2 {[%emt 0:03:29]} Bd5 {[%emt 0:06:01]} 14. Qd3 {[%emt 0:08:02]} c5 {[%emt 0:03:46]} 15. e4 {[%emt 0:00:23]} Bb7 {[%emt 0:00:10]} 16. e5 {[%emt 0:00:58]} Nd5 {[%emt 0:00:23]} 17. Nc4 {[%emt 0:00:23]} cxd4 {[%emt 0:00:18]} 18. Qxd4 {[%emt 0:02:52]} Nc5 {[%emt 0:02:36]} 19. Qg4 {[%emt 0:01:34]} f5 {[%emt 0:03:34]} 20. exf6 {[%emt 0:02:28]} Nxf6 {[%emt 0:02:35]} 21. Qh3 {[%emt 0:01:39]} Rc8 {[%emt 0:05:22]} 22. Be3 {[%emt 0:04:07]} Nfe4 {[%emt 0:03:09]} 23. Nfe5 {[%emt 0:06:40]} Bd5 {[%emt 0:04:53]} 24. Rad1 {[%emt 0:09:52]} Qe8 {[%emt 0:05:15]} 25. Nb6 {[%emt 0:04:43]} Rd8 {[%emt 0:00:27]} 26. Nxd5 {[%emt 0:00:26]} Rxd5 {[%emt 0:00:15]} 27. Bxe4 {[%emt 0:00:36]} Nxe4 {[%emt 0:00:15]} 28. Qxe6+ {[%emt 0:00:10]} Kh8 {[%emt 0:00:03]} 29. Qxd5 {[%emt 0:00:21]} Ng5 {[%emt 0:00:22]} 30. Bxg5 {[%emt 0:00:10]} Bxg5 {[%emt 0:00:03]} 31. Nd7 {[%emt 0:00:33]} 1-0

[Event "EYCC Open-U12 2019"]
[Site "Bratislava"]
[Date "2019.08.08"]
[Round "7.14"]
[White "Ristic, Luka"]
[Black "Stork, Christopher"]
[Result "1/2-1/2"]
[ECO "B40"]
[WhiteElo "2113"]
[BlackElo "1905"]
[Annotator "NA"]
[PlyCount "150"]
[EventDate "2019.08.02"]
[EventType "swiss"]
[EventCountry "SVK"]
[SourceTitle "playchess.com"]
[Source "ChessBase"]
[SourceQuality "1"]
[TimeControl "40/5400+30:1800+30"]

1. e4 {[%emt 0:00:00]} c5 {[%emt 0:00:00]} 2. Nf3 {[%emt 0:00:00]} e6 {[%emt 0:00:00]} 3. d4 {[%emt 0:00:08]} cxd4 {[%emt 0:00:00]} 4. Nxd4 {[%emt 0:00:06]} Nf6 {[%emt 0:00:00]} 5. Nc3 {[%emt 0:00:34]} Nc6 {[%emt 0:00:02]} 6. Ndb5 {[%emt 0:00:21]} Bc5 {[%emt 0:00:09]} 7. Bf4 {[%emt 0:05:54]} O-O {[%emt 0:01:30]} 8. Bc7 {[%emt 0:02:52]} Qe7 {[%emt 0:00:21]} 9. Bd6 {[%emt 0:00:11]} Bxd6 {[%emt 0:00:05]} 10. Qxd6 {[%emt 0:00:32]} Qd8 {[%emt 0:00:50]} 11. Nc7 {[%emt 0:03:47]} Rb8 {[%emt 0:00:13]} 12. O-O-O {[%emt 0:01:30]} b6 {[%emt 0:07:14]} 13. Be2 {[%emt 0:04:55]} Bb7 {[%emt 0:12:13]} 14. f4 {[%emt 0:09:12]} Rc8 {[%emt 0:04:02]} 15. Na6 {[%emt 0:07:58]} Ne7 {[%emt 0:01:50]} 16. Qd4 {[%emt 0:08:46]} d5 {[%emt 0:02:18]} 17. e5 {[%emt 0:02:18]} Nd7 {[%emt 0:01:45]} 18. Qa4 {[%emt 0:07:49]} Nc5 {[%emt 0:12:49]} 19. Nxc5 {[%emt 0:01:12]} Rxc5 {[%emt 0:03:27]} 20. Ne4 {[%emt 0:04:57]} Ra5 {[%emt 0:02:29]} 21. Qb3 {[%emt 0:00:07]} Qc7 {[%emt 0:01:11]} 22. Nd6 {[%emt 0:00:51]} Bc6 {[%emt 0:01:19]} 23. Bb5 {[%emt 0:07:00]} Bxb5 {[%emt 0:04:12]} 24. Nxb5 {[%emt 0:00:02]} Qc5 {[%emt 0:04:07]} 25. Nd6 {[%emt 0:00:04]} Qc6 {[%emt 0:00:33]} 26. Rd3 {[%emt 0:02:24]} Rc5 {[%emt 0:01:38]} 27. Rhd1 {[%emt 0:01:33]} Nc8 {[%emt 0:00:46]} 28. Nxc8 {[%emt 0:00:15]} Rxc8 {[%emt 0:00:21]} 29. c3 {[%emt 0:00:14]} g6 {[%emt 0:02:56]} 30. Rd4 {[%emt 0:01:27]} Rc4 {[%emt 0:01:06]} 31. g4 {[%emt 0:01:25]} Qc5 {[%emt 0:01:55]} 32. Kb1 {[%emt 0:04:46]} Qe7 {[%emt 0:01:34]} 33. Qc2 {[%emt 0:00:46]} Qh4 {[%emt 0:02:02]} 34. Qe2 {[%emt 0:00:48]} Rxd4 {[%emt 0:06:04]} 35. cxd4 {[%emt 0:02:32]} Rc4 {[%emt 0:01:08]} 36. Qg2 {[%emt 0:01:22]} Qe7 {[%emt 0:00:46]} 37. f5 {[%emt 0:00:47]} Qb4 {[%emt 0:02:52]} 38. Qf2 {[%emt 0:00:20]} Qe7 {[%emt 0:01:23]} 39. f6 {[%emt 0:00:12]} Qf8 {[%emt 0:00:11]} 40. Qd2 {[%emt 0:00:00]} h6 {[%emt 0:00:00]} 41. Rf1 {[%emt 0:03:51]} Kh7 {[%emt 0:02:35]} 42. Rf3 {[%emt 0:00:12]} Rc6 {[%emt 0:01:03]} 43. Rh3 {[%emt 0:00:20]} Rc4 {[%emt 0:00:28]} 44. Qd3 {[%emt 0:00:19]} Kg8 45. Qd2 {[%emt 0:00:33]} Kh7 {[%emt 0:05:23]} 46. b3 {[%emt 0:00:13]} Rc6 {[%emt 0:00:24]} 47. Kb2 {[%emt 0:00:05]} a5 {[%emt 0:01:19]} 48. a4 {[%emt 0:00:08]} Rc7 {[%emt 0:00:20]} 49. Qd3 {[%emt 0:02:31]} Kg8 {[%emt 0:01:08]} 50. Ka2 {[%emt 0:03:29]} Rc6 {[%emt 0:01:29]} 51. Rf3 {[%emt 0:02:06]} Qc8 {[%emt 0:01:03]} 52. Kb2 {[%emt 0:00:58]} Rc7 {[%emt 0:01:27]} 53. Rf2 {[%emt 0:00:48]} Rc6 {[%emt 0:00:29]} 54. Qe3 {[%emt 0:01:17]} Kh7 {[%emt 0:01:05]} 55. h4 {[%emt 0:00:07]} Qc7 {[%emt 0:00:39]} 56. Qd3 {[%emt 0:00:09]} Kg8 {[%emt 0:00:19]} 57. Qb5 {[%emt 0:00:58]} Qc8 {[%emt 0:01:26]} 58. Re2 {[%emt 0:01:56]} Kh7 {[%emt 0:00:30]} 59. Rd2 {[%emt 0:00:54]} Kg8 {[%emt 0:00:31]} 60. h5 {[%emt 0:00:43]} g5 {[%emt 0:00:18]} 61. Qd3 {[%emt 0:00:16]} Qc7 {[%emt 0:00:31]} 62. Qa6 {[%emt 0:01:04]} Rc1 {[%emt 0:01:03]} 63. Qd3 {[%emt 0:00:15]} Rc6 {[%emt 0:00:08]} 64. Ka2 {[%emt 0:00:06]} Qc8 {[%emt 0:00:24]} 65. Kb2 {[%emt 0:00:46]} Qc7 {[%emt 0:00:08]} 66. Qb5 {[%emt 0:00:16]} Qc8 {[%emt 0:01:21]} 67. Qd3 {[%emt 0:00:25]} Qc7 {[%emt 0:00:09]} 68. Rf2 {[%emt 0:00:58]} Qc8 {[%emt 0:00:28]} 69. Qb1 {[%emt 0:00:54]} Rc3 {[%emt 0:01:27]} 70. Rc2 {[%emt 0:00:45]} Rxc2+ {[%emt 0:00:09]} 71. Qxc2 {[%emt 0:00:04]} Qxc2+ {[%emt 0:00:06]} 72. Kxc2 {[%emt 0:00:05]} Kf8 {[%emt 0:00:11]} 73. b4 {[%emt 0:00:21]} Ke8 {[%emt 0:00:10]} 74. Kb3 {[%emt 0:00:15]} Kd7 {[%emt 0:00:06]} 75. bxa5 {[%emt 0:00:16]} bxa5 1/2-1/2

[Event "EYCC Open-U12 2019"]
[Site "Bratislava"]
[Date "2019.08.08"]
[Round "7.15"]
[White "Konyves, Almos"]
[Black "Suleymanov, Ali"]
[Result "0-1"]
[ECO "D58"]
[WhiteElo "2104"]
[BlackElo "1733"]
[Annotator "NA"]
[PlyCount "56"]
[EventDate "2019.08.02"]
[EventType "swiss"]
[EventCountry "SVK"]
[SourceTitle "playchess.com"]
[Source "ChessBase"]
[SourceQuality "1"]
[TimeControl "40/5400+30:1800+30"]

1. Nf3 {[%emt 0:00:00]} Nf6 {[%emt 0:00:00]} 2. c4 {[%emt 0:00:00]} e6 {[%emt 0:03:25]} 3. Nc3 {[%emt 0:00:00]} d5 {[%emt 0:00:55]} 4. d4 {[%emt 0:00:00]} Be7 {[%emt 0:01:55]} 5. Bg5 {[%emt 0:00:47]} h6 {[%emt 0:00:52]} 6. Bh4 {[%emt 0:00:40]} O-O {[%emt 0:00:48]} 7. e3 {[%emt 0:00:17]} b6 {[%emt 0:05:23]} 8. cxd5 {[%emt 0:01:56]} exd5 {[%emt 0:00:54]} 9. Bd3 {[%emt 0:00:14]} Bb7 {[%emt 0:01:46]} 10. O-O {[%emt 0:00:30]} Ne4 {[%emt 0:04:28]} 11. Bxe7 {[%emt 0:00:15]} Qxe7 {[%emt 0:00:08]} 12. Qc2 {[%emt 0:00:55]} c5 {[%emt 0:10:02]} 13. dxc5 {[%emt 0:01:10]} bxc5 {[%emt 0:04:32]} 14. Rfd1 {[%emt 0:07:45]} Nf6 {[%emt 0:03:10]} 15. Be2 {[%emt 0:05:10]} Nbd7 {[%emt 0:05:48]} 16. Rac1 {[%emt 0:03:08]} Rac8 {[%emt 0:01:55]} 17. Qd2 {[%emt 0:11:27]} Rfd8 {[%emt 0:03:44]} 18. Qe1 {[%emt 0:02:20]} Nf8 {[%emt 0:03:55]} 19. b3 {[%emt 0:17:55]} Ne6 {[%emt 0:01:57]} 20. Bf1 {[%emt 0:02:58]} d4 {[%emt 0:04:25]} 21. exd4 {[%emt 0:02:22]} Bxf3 {[%emt 0:00:10]} 22. gxf3 {[%emt 0:00:23]} cxd4 {[%emt 0:00:29]} 23. Nb5 {[%emt 0:04:46]} Rxc1 {[%emt 0:04:24]} 24. Rxc1 {[%emt 0:00:07]} Nd5 {[%emt 0:10:23]} 25. Qe5 {[%emt 0:05:34]} a6 {[%emt 0:08:38]} 26. Bc4 {[%emt 0:01:31]} Ndf4 {[%emt 0:00:25]} 27. Bxe6 {[%emt 0:01:36]} Nxe6 {[%emt 0:00:18]} 28. Nc7 {[%emt 0:01:03]} Rc8 {[%emt 0:00:21]} 0-1

[Event "EYCC Open-U12 2019"]
[Site "Bratislava"]
[Date "2019.08.08"]
[Round "7.16"]
[White "Nastore, Pavel-Alexandru"]
[Black "Valiyev, Shahin"]
[Result "1/2-1/2"]
[ECO "D31"]
[WhiteElo "2084"]
[BlackElo "1830"]
[Annotator "NA"]
[PlyCount "91"]
[EventDate "2019.08.02"]
[EventType "swiss"]
[EventCountry "SVK"]
[SourceTitle "playchess.com"]
[Source "ChessBase"]
[SourceQuality "1"]
[TimeControl "40/5400+30:1800+30"]

1. d4 {[%emt 0:00:00]} d5 {[%emt 0:00:43]} 2. c4 {[%emt 0:00:00]} c6 {[%emt 0:00:06]} 3. Nc3 {[%emt 0:01:02]} e6 {[%emt 0:00:07]} 4. e4 {[%emt 0:01:27]} dxe4 {[%emt 0:00:15]} 5. Nxe4 {[%emt 0:00:04]} Bb4+ {[%emt 0:00:49]} 6. Bd2 {[%emt 0:00:46]} Bxd2+ {[%emt 0:00:59]} 7. Qxd2 {[%emt 0:00:24]} Nf6 {[%emt 0:00:46]} 8. Ng3 {[%emt 0:01:25]} O-O {[%emt 0:00:43]} 9. Nf3 {[%emt 0:01:09]} Qc7 {[%emt 0:05:26]} 10. Bd3 {[%emt 0:00:29]} c5 {[%emt 0:00:58]} 11. O-O {[%emt 0:03:39]} cxd4 {[%emt 0:01:16]} 12. Nxd4 {[%emt 0:00:19]} Nc6 {[%emt 0:02:31]} 13. Nxc6 {[%emt 0:04:37]} Qxc6 {[%emt 0:00:17]} 14. Rad1 {[%emt 0:01:26]} b6 {[%emt 0:02:26]} 15. Be2 {[%emt 0:08:07]} Bb7 {[%emt 0:02:24]} 16. Bf3 {[%emt 0:00:05]} Qc7 {[%emt 0:00:18]} 17. Bxb7 Qxb7 {[%emt 0:05:27]} 18. Qd6 {[%emt 0:03:39]} Qa6 {[%emt 0:03:37]} 19. b3 {[%emt 0:04:34]} Qxa2 {[%emt 0:01:21]} 20. Rd3 {[%emt 0:00:03]} h6 {[%emt 0:00:59]} 21. Rfd1 {[%emt 0:04:57]} Kh7 {[%emt 0:04:44]} 22. Qf4 {[%emt 0:00:39]} Qa5 {[%emt 0:03:03]} 23. h3 {[%emt 0:03:21]} Qc5 {[%emt 0:01:01]} 24. Qh4 {[%emt 0:02:17]} a5 {[%emt 0:02:57]} 25. Ne4 {[%emt 0:09:36]} Nxe4 {[%emt 0:00:37]} 26. Qxe4+ {[%emt 0:00:04]} Kg8 {[%emt 0:00:11]} 27. Rd7 {[%emt 0:01:08]} Rac8 {[%emt 0:04:26]} 28. Qb7 {[%emt 0:03:11]} Qc6 {[%emt 0:00:30]} 29. R1d6 {[%emt 0:00:21]} Qxb7 {[%emt 0:00:25]} 30. Rxb7 {[%emt 0:00:04]} a4 {[%emt 0:00:50]} 31. bxa4 {[%emt 0:08:23]} Rxc4 {[%emt 0:00:17]} 32. Ra7 {[%emt 0:00:06]} Rb4 {[%emt 0:02:35]} 33. g3 {[%emt 0:00:34]} g6 {[%emt 0:01:58]} 34. Kg2 {[%emt 0:00:10]} Kg7 {[%emt 0:00:15]} 35. Rxe6 {[%emt 0:00:47]} Rxa4 {[%emt 0:02:11]} 36. Rb7 {[%emt 0:00:01]} b5 {[%emt 0:00:49]} 37. Reb6 {[%emt 0:00:04]} Rb4 {[%emt 0:00:08]} 38. Rxb5 {[%emt 0:00:03]} Rxb5 {[%emt 0:00:06]} 39. Rxb5 {[%emt 0:00:04]} Rc8 {[%emt 0:00:03]} 40. Rb6 {[%emt 0:00:00]} Rc3 {[%emt 0:00:00]} 41. h4 h5 {[%emt 0:00:12]} 42. Rb4 {[%emt 0:00:21]} f5 {[%emt 0:00:12]} 43. Rb6 {[%emt 0:00:40]} Kf7 {[%emt 0:00:06]} 44. Ra6 {[%emt 0:00:33]} Rb3 {[%emt 0:00:05]} 45. Ra4 {[%emt 0:00:22]} Kf6 {[%emt 0:00:07]} 46. Ra5 {[%emt 0:00:10] Ke5} 1/2-1/2

[Event "EYCC Open-U12 2019"]
[Site "Bratislava"]
[Date "2019.08.08"]
[Round "7.17"]
[White "Milanovic, Marko"]
[Black "Pavesi, Brando"]
[Result "0-1"]
[ECO "B19"]
[WhiteElo "1814"]
[BlackElo "2109"]
[Annotator "NA"]
[PlyCount "100"]
[EventDate "2019.08.02"]
[EventType "swiss"]
[EventCountry "SVK"]
[SourceTitle "playchess.com"]
[Source "ChessBase"]
[SourceQuality "1"]
[TimeControl "40/5400+30:1800+30"]

1. e4 {[%emt 0:00:00]} c6 {[%emt 0:00:11]} 2. d4 {[%emt 0:00:00]} d5 {[%emt 0:00:16]} 3. Nd2 {[%emt 0:00:00]} dxe4 {[%emt 0:00:19]} 4. Nxe4 {[%emt 0:00:05]} Bf5 {[%emt 0:00:57]} 5. Ng3 {[%emt 0:00:18]} Bg6 {[%emt 0:00:08]} 6. h4 {[%emt 0:00:06]} h6 {[%emt 0:00:09]} 7. Nf3 {[%emt 0:00:10]} Nd7 {[%emt 0:00:32]} 8. h5 {[%emt 0:00:16]} Bh7 {[%emt 0:00:16]} 9. Bd3 {[%emt 0:00:17]} Bxd3 {[%emt 0:00:53]} 10. Qxd3 {[%emt 0:00:07]} e6 {[%emt 0:00:23]} 11. Bd2 {[%emt 0:00:19]} Ngf6 {[%emt 0:00:49]} 12. O-O-O {[%emt 0:00:26]} Be7 {[%emt 0:00:24]} 13. Kb1 {[%emt 0:02:59]} Qb6 {[%emt 0:01:57]} 14. Ne4 {[%emt 0:04:32]} Nxe4 {[%emt 0:00:29]} 15. Qxe4 {[%emt 0:00:07]} Nf6 {[%emt 0:01:20]} 16. Qe2 {[%emt 0:01:23]} Qb5 {[%emt 0:03:24]} 17. Qxb5 {[%emt 0:13:46]} cxb5 {[%emt 0:00:06]} 18. Ne5 {[%emt 0:02:39]} O-O {[%emt 0:18:12]} 19. g4 {[%emt 0:15:08]} Ne4 {[%emt 0:11:24]} 20. Be3 {[%emt 0:03:24]} Rfd8 {[%emt 0:10:52]} 21. f3 {[%emt 0:06:04]} Nf6 {[%emt 0:07:50]} 22. Rhg1 {[%emt 0:17:03]} Nd5 {[%emt 0:02:14]} 23. Bc1 {[%emt 0:02:30]} Bg5 {[%emt 0:15:38]} 24. f4 {[%emt 0:12:15]} Nxf4 {[%emt 0:05:39]} 25. Rgf1 {[%emt 0:00:56]} f6 {[%emt 0:02:45]} 26. Bxf4 {[%emt 0:03:24]} Bxf4 {[%emt 0:00:16]} 27. Rxf4 {[%emt 0:00:34]} fxe5 {[%emt 0:00:05]} 28. Re4 {[%emt 0:01:09]} Rxd4 {[%emt 0:03:19]} 29. Rdxd4 {[%emt 0:00:48]} exd4 30. Rxd4 {[%emt 0:00:48]} Rf8 {[%emt 0:02:06]} 31. c3 {[%emt 0:01:49]} a6 {[%emt 0:05:31]} 32. Kc2 {[%emt 0:01:23]} Rf2+ {[%emt 0:02:34]} 33. Kb3 {[%emt 0:00:36]} e5 {[%emt 0:01:07]} 34. Re4 {[%emt 0:00:58]} Rf4 {[%emt 0:00:33]} 35. Rxe5 {[%emt 0:09:33]} Rxg4 {[%emt 0:00:14]} 36. Re7 {[%emt 0:00:11]} Rg5 {[%emt 0:01:30]} 37. Rxb7 {[%emt 0:00:20]} Rxh5 {[%emt 0:00:04]} 38. Ra7 {[%emt 0:00:26]} Rg5 {[%emt 0:01:58]} 39. Rxa6 {[%emt 0:00:19]} h5 {[%emt 0:00:04]} 40. a4 {[%emt 0:00:00]} h4 {[%emt 0:00:00]} 41. Rd6 {[%emt 0:02:27]} h3 {[%emt 0:08:38]} 42. Rd1 {[%emt 0:00:45]} h2 {[%emt 0:02:57]} 43. Rh1 {[%emt 0:00:05]} bxa4+ {[%emt 0:00:09]} 44. Kxa4 {[%emt 0:00:04]} Rg2 {[%emt 0:00:57]} 45. b4 {[%emt 0:01:31]} g5 {[%emt 0:01:53]} 46. Kb3 {[%emt 0:08:45]} Kf7 {[%emt 0:06:36]} 47. Kc4 {[%emt 0:02:55]} g4 {[%emt 0:00:45]} 48. b5 {[%emt 0:00:15]} g3 {[%emt 0:00:25]} 49. b6 {[%emt 0:00:26]} Rb2 {[%emt 0:00:06]} 50. Kd3 {[%emt 0:00:21]} Rxb6 0-1

[Event "EYCC Open-U12 2019"]
[Site "Bratislava"]
[Date "2019.08.08"]
[Round "7.18"]
[White "Eliseev, Sergey"]
[Black "Tran, David"]
[Result "1/2-1/2"]
[ECO "A48"]
[WhiteElo "2053"]
[BlackElo "2112"]
[Annotator "NA"]
[PlyCount "85"]
[EventDate "2019.08.02"]
[EventType "swiss"]
[EventCountry "SVK"]
[SourceTitle "playchess.com"]
[Source "ChessBase"]
[SourceQuality "1"]
[TimeControl "40/5400+30:1800+30"]

1. d4 {[%emt 0:00:00]} Nf6 {[%emt 0:00:00]} 2. Nf3 {[%emt 0:00:00]} g6 {[%emt 0:00:00]} 3. Bg5 {[%emt 0:00:09]} Bg7 {[%emt 0:00:00]} 4. Nbd2 {[%emt 0:00:11]} O-O {[%emt 0:00:16]} 5. c3 {[%emt 0:00:07]} d6 {[%emt 0:00:09]} 6. e4 {[%emt 0:00:06]} c5 {[%emt 0:00:04]} 7. dxc5 {[%emt 0:00:06]} dxc5 {[%emt 0:00:09]} 8. Bc4 {[%emt 0:00:05]} Nc6 {[%emt 0:00:05]} 9. Qe2 {[%emt 0:00:06]} Qc7 {[%emt 0:01:29]} 10. O-O {[%emt 0:00:15]} Na5 {[%emt 0:00:14]} 11. Bd3 {[%emt 0:00:08]} h6 {[%emt 0:00:20]} 12. Bxf6 {[%emt 0:06:55]} exf6 {[%emt 0:00:53]} 13. b4 {[%emt 0:01:28]} Nc6 {[%emt 0:01:46]} 14. b5 {[%emt 0:04:33]} Ne5 {[%emt 0:02:15]} 15. Nxe5 {[%emt 0:00:18]} fxe5 {[%emt 0:00:32]} 16. Bc4 {[%emt 0:00:24]} Kh8 {[%emt 0:02:16]} 17. Bd5 {[%emt 0:11:49]} a6 {[%emt 0:07:30]} 18. Rfb1 {[%emt 0:11:52]} axb5 {[%emt 0:01:56]} 19. Qxb5 {[%emt 0:09:27]} Rd8 {[%emt 0:09:47]} 20. Nc4 {[%emt 0:17:41]} Ra6 {[%emt 0:06:48]} 21. g3 {[%emt 0:11:17]} f5 {[%emt 0:02:58]} 22. Kg2 {[%emt 0:08:41]} fxe4 {[%emt 0:04:51]} 23. Ne3 {[%emt 0:08:35]} b6 {[%emt 0:05:29]} 24. Qc6 {[%emt 0:01:04]} Qxc6 {[%emt 0:01:36]} 25. Bxc6 {[%emt 0:00:07]} Rf8 {[%emt 0:14:01]} 26. Rb2 {[%emt 0:02:24]} Bf5 {[%emt 0:04:22]} 27. Bb7 {[%emt 0:01:58]} Ra7 {[%emt 0:04:06]} 28. Bd5 {[%emt 0:00:10]} Rf6 {[%emt 0:03:11]} 29. Rab1 {[%emt 0:00:28]} Ra6 {[%emt 0:04:31]} 30. Bc4 {[%emt 0:00:16]} Ra3 {[%emt 0:00:15]} 31. Nd5 {[%emt 0:01:59]} e3 {[%emt 0:01:16]} 32. Nxf6 {[%emt 0:01:27]} Bxb1 {[%emt 0:00:19]} 33. Nd7 {[%emt 0:01:24]} Be4+ {[%emt 0:01:49]} 34. f3 {[%emt 0:00:43]} Rxc3 {[%emt 0:01:07]} 35. Be2 {[%emt 0:00:32]} Rc2 {[%emt 0:03:10]} 36. Rxc2 {[%emt 0:00:08]} Bxc2 {[%emt 0:00:01]} 37. Nxb6 {[%emt 0:00:15]} e4 {[%emt 0:00:16]} 38. f4 {[%emt 0:01:12]} Bd3 {[%emt 0:01:33]} 39. Kf1 {[%emt 0:00:07]} Bc3 {[%emt 0:01:06]} 40. Nc4 {[%emt 0:00:00]} Bd2 {[%emt 0:00:00]} 41. Ne5 {[%emt 0:09:08]} Bb1 {[%emt 0:09:20]} 42. a4 {[%emt 0:04:13]} Bc2 {[%emt 0:00:17]} 43. Bb5 {[%emt 0:01:13]} 1/2-1/2

[Event "EYCC Open-U12 2019"]
[Site "Bratislava"]
[Date "2019.08.08"]
[Round "7.19"]
[White "Stevanovic, Jovan"]
[Black "Meers, Hubert"]
[Result "0-1"]
[ECO "A30"]
[WhiteElo "1783"]
[BlackElo "2141"]
[Annotator "NA"]
[PlyCount "78"]
[EventDate "2019.08.02"]
[EventType "swiss"]
[EventCountry "SVK"]
[SourceTitle "playchess.com"]
[Source "ChessBase"]
[SourceQuality "1"]
[TimeControl "40/5400+30:1800+30"]

1. c4 c5 2. g3 Nc6 3. Bg2 g6 4. Nf3 e5 5. d3 Bg7 6. O-O Nge7 7. Nc3 O-O 8. Rb1 d6 9. a3 a5 10. Ne1 Be6 11. Nc2 d5 12. b3 Qd7 13. e4 dxc4 14. bxc4 Nc8 15. Ne3 Rb8 16. Ned5 N8a7 17. Be3 Nd4 18. Bxd4 cxd4 19. Nb6 Qd6 20. Ncd5 Qxa3 21. Ra1 Qc5 22. Qd2 Nc6 23. Rfb1 Qd6 24. Rb5 f5 25. exf5 gxf5 26. f4 Kh8 27. fxe5 Bxe5 28. Re1 Rbe8 29. Nf4 Bxf4 30. Qxf4 Qxf4 31. gxf4 Rg8 32. Kh1 Bxc4 33. Rxe8 Bxb5 34. Rxg8+ Kxg8 35. Bd5+ Kg7 36. Nc4 Bxc4 37. Bxc4 a4 38. Ba2 Nb4 39. Bc4 a3 0-1